Cogmind - Beta 9 @@@ ROGUE MODE // 2019.10.28 @ 13:32:58 Player: MrPainting Result: Self-destructed Performance ------------- Evolutions (2) 1000 Regions Visited (5) 1000 Robots Destroyed (17) 85 Value Destroyed (442) 442 Prototype IDs (1) 20 Alien Tech Used (0) 0 Bonus (0) 0 TOTAL SCORE: 2547 Bonus ------- None Cogmind --------- Core Integrity 397/550 Matter 285/300 Energy 62/100 System Corruption 0% Temperature Cool (147) Location -8/Materials Parts ------- Power (1) Propulsion (4) Utility (4) Signal Interpreter Weapon (2) Inventory (4) Improved Heat Sink Humpback High-capacity Matter Pod (200) Peak State ------------ Power Light Nuclear Core Propulsion Improved Treads Aluminum Leg Utility Sensor Array Signal Interpreter Weapon Particle Gun Light Cannon Inventory Heat Sink Humpback High-capacity Matter Pod [Rating: 11] Favorites ----------- Power Light Nuclear Core Engine Improved Ion Engine Power Core Light Nuclear Core Propulsion Aluminum Leg Treads Improved Treads Leg Aluminum Leg Utility Signal Interpreter Device Sensor Array Processor Signal Interpreter Weapon Particle Gun Energy Gun Particle Gun Energy Cannon Light EM Pulse Cannon Ballistic Gun Light Assault Rifle Ballistic Cannon Light Cannon Launcher Advanced EMP Blaster Build | -11 -10 -10 -10 -9 -8 ------- Run | Scr Mat Min Exi Min Mat Slots Evolved 4 | . . . . . 4 Power . | . . . . . . Propulsion 2 | . . . . . 2 Utility 2 | . . . . . 2 Weapon . | . . . . . . Parts Attached 27 | 1 17 1 . 5 3 Power 5 | . 3 . . 1 1 Engine 4 | . 2 . . 1 1 Core 1 | . 1 . . . . Reactor . | . . . . . . Propulsion 7 | 1 4 . . 2 . Treads 2 | . . . . 2 . Leg 5 | 1 4 . . . . Wheel . | . . . . . . Hover . | . . . . . . Flight . | . . . . . . Utility 5 | . 4 1 . . . Device 3 | . 2 1 . . . Storage . | . . . . . . Processor 2 | . 2 . . . . Hackware . | . . . . . . Protection . | . . . . . . Artifact . | . . . . . . Weapon 10 | . 6 . . 2 2 Energy Gun 3 | . 3 . . . . Energy Cannon 1 | . . . . 1 . Ballistic Gun 3 | . 2 . . 1 . Ballistic Cannon 1 | . 1 . . . . Launcher 2 | . . . . . 2 Special Weapon . | . . . . . . Impact Weapon . | . . . . . . Slashing Weapon . | . . . . . . Piercing Weapon . | . . . . . . Special Melee Weapon . | . . . . . . Unidentified Prototypes 1 | . . . . . 1 Parts Lost 9 | . . . . 4 5 Power 2 | . . . . 1 1 Propulsion 3 | . . . . 1 2 Utility 1 | . . . . 1 . Weapon 3 | . . . . 1 2 Highest Loss Streak 5 | . . . . 4 5 Average Slot Usage (%) 87 | . 85 100 100 78 51 Engine 3 | . 9 . . 2 8 Core 8 | . 4 14 14 4 . Treads 4 | . . . . 15 16 Leg 21 | . 27 28 28 6 . Device 8 | . 4 14 14 6 . Processor 13 | . 14 14 14 14 9 Energy Gun 10 | . 13 14 14 4 . Energy Cannon 1 | . . . . 6 8 Ballistic Gun 4 | . 10 . . 8 8 Ballistic Cannon 8 | . . 14 14 7 . Naked Turns . | . . . . . . Heaviest Build 12 | . 11 12 12 12 12 Greatest Support 46 | 10 20 20 20 46 46 Greatest Overweight (x) 1 | . . . . . 1 Average Overweight (x) . | . . . . . . Largest Inventory Capacity 4 | 4 4 4 4 4 4 Average Capacity 4 | 4 4 4 4 4 4 Most Carried 4 | 4 4 4 4 4 4 Average Carried 3 | 3 3 3 3 4 4 Final Capacity 4 | . . . . . 4 Final Carried 4 | . . . . . 4 Class Distribution -------------------- 64% | Scavenger-Mutant 35% | Mutant Dominant Class ---------------- Mutant | -10/Materials Scavenger-Mutant | -10/Mines Scavenger-Mutant | -10/Exiles Mutant | -9/Mines Mutant | -8/Materials Resources | -11 -10 -10 -10 -9 -8 ----------- Run | Scr Mat Min Exi Min Mat Matter Collected 828 | 63 291 374 . 34 66 Remotely . | . . . . . . Salvage Created 670 | . 367 . . 34 269 Parts 35 | . 18 . . 6 11 Haulers Intercepted 2 | . 2 . . . . Recyclers Shooed 2 | . . . . . 2 Parts Field Recycled . | . . . . . . Retrieved Matter . | . . . . . . Parts Self-Destructed . | . . . . . . Prevented . | . . . . . . Kills | -11 -10 -10 -10 -9 -8 ------- Run | Scr Mat Min Exi Min Mat Combat Hostiles Destroyed 12 | . 5 . . 4 3 Guns 7 | . 5 . . 2 . Cannons 4 | . . . . 2 2 AOE 1 | . . . . . 1 Classes Destroyed 7 | . 3 . . 1 3 Worker 1 | . . . . . 1 Hauler 2 | . 2 . . . . Recycler 1 | . . . . . 1 Watcher 1 | . 1 . . . . Swarmer 4 | . . . . 4 . Grunt 7 | . 5 . . . 2 Sentry 1 | . . . . . 1 Best Kill Streak 4 | . 4 . . 3 3 Combat Bots Only 4 | . 4 . . 3 2 Max Kills in Single Turn 3 | . 1 . . 1 3 Gunslinging . | . . . . . . Exploded 1 | . . . . . 1 Melee . | . . . . . . Uniques/NPCs Destroyed . | . . . . . . Combat | -11 -10 -10 -10 -9 -8 -------- Run | Scr Mat Min Exi Min Mat Damage Taken 1087 | . 224 . . 340 523 Core 246 | . 33 . . 60 153 Absorbed by Shields . | . . . . . . Core Remaining (%) 81 | 100 . . . 62 . Volleys Fired 55 | . 21 . . 19 15 Largest 2 | . 2 . . 2 2 Hottest 100 | . 85 . . 100 76 Shots Fired 91 | . 35 . . 31 25 Gun 64 | . 35 . . 19 10 Cannon 24 | . . . . 12 12 Launcher 3 | . . . . . 3 Special . | . . . . . . Kinetic 45 | . 17 . . 18 10 Thermal 25 | . 12 . . 13 . Explosive . | . . . . . . Electromagnetic 21 | . 6 . . . 15 Robot Hit Streak 14 | . 14 . . 4 5 Robot Miss Streak 4 | . 3 . . 4 2 Penetration Max . | . . . . . . Secondary Targets 1 | . 1 . . . . Max Gunslinging Chain 1 | . 1 . . . . Shots Hit Robots 57 | . 23 . . 16 18 Core Hits 27 | . 13 . . 4 10 Critical Hits 1 | . . . . . 1 Critical Kills 1 | . . . . . 1 Critical Parts Destroyed . | . . . . . . Melee Attacks . | . . . . . . Impact . | . . . . . . Slashing . | . . . . . . Piercing . | . . . . . . Sneak Attacks . | . . . . . . Combat Hostiles . | . . . . . . Follow-up Attacks . | . . . . . . Damage Inflicted 1327 | . 328 . . 253 746 Guns 532 | . 328 . . 151 53 Cannons 278 | . . . . 102 176 Explosions 517 | . . . . . 517 Melee . | . . . . . . Ramming . | . . . . . . Kinetic 291 | . 109 . . 129 53 Thermal 415 | . 162 . . 124 129 Explosive . | . . . . . . Electromagnetic 621 | . 57 . . . 564 Impact . | . . . . . . Slashing . | . . . . . . Piercing . | . . . . . . Highest Corruption . | . . . . . . Average Corruption . | . . . . . . Corruption Purged . | . . . . . . Overload Shots . | . . . . . . Overflow Damage 37 | . . . . 17 20 Projectiles 17 | . . . . 17 . Explosions 20 | . . . . . 20 Melee . | . . . . . . Knockbacks 2 | . . . . 2 . Impact . | . . . . . . Kinetic 2 | . . . . 2 . Secondary . | . . . . . . Self-Inflicted Damage . | . . . . . . Shots . | . . . . . . Rammed . | . . . . . . Targets Rammed . | . . . . . . Kicked . | . . . . . . Crushed . | . . . . . . Highest Temperature 530 | . 157 . . 530 279 Average Temperature 156 | . 61 . . 282 103 Received Heat Transfer 381 | . 129 . . . 252 Effects 9 | . . . . 9 . Shutdowns 1 | . . . . 1 . Energy Bleed 3 | . . . . 3 . Matter Decay 1 | . . . . 1 . Short Circuit 1 | . . . . 1 . Damage (minor) 2 | . . . . 2 . Damage (core) 1 | . . . . 1 . Siege Activations . | . . . . . . Robots Corrupted . | . . . . . . Combat Hostiles . | . . . . . . Parts Fried . | . . . . . . Impact Corruptions . | . . . . . . Robots Melted . | . . . . . . Combat Hostiles . | . . . . . . Parts Melted 2 | . 2 . . . . Heat Transferred 953 | . 407 . . 296 250 Parts Sabotaged . | . . . . . . Parts Stolen . | . . . . . . Parts Stripped . | . . . . . . Power Chain Reactions 2 | . . . . . 2 Missiles Intercepted . | . . . . . . Alert | -11 -10 -10 -10 -9 -8 ------- Run | Scr Mat Min Exi Min Mat Peak Influence 151 | . 146 56 . 100 151 Average Influence 61 | . 70 56 . 61 64 Maximum Alert Level . | . . . . . . Low Security (%) 100 | . . . . . . Level 1 . | . . . . . . Level 2 . | . . . . . . Level 3 . | . . . . . . Level 4 . | . . . . . . Level 5 . | . . . . . . High Security . | . . . . . . Max Security . | . . . . . . Squads Dispatched 4 | . 2 . . . 2 Investigation . | . . . . . . Extermination . | . . . . . . Reinforcement 4 | . 2 . . . 2 Assault . | . . . . . . Garrison . | . . . . . . Intercept . | . . . . . . Construction Impeded . | . . . . . . Haulers Reinforced . | . . . . . . Stealth | -11 -10 -10 -10 -9 -8 --------- Run | Scr Mat Min Exi Min Mat Distress Signals . | . . . . . . Communications Jammed . | . . . . . . Distress Signals . | . . . . . . Times Spotted 20 | . 7 . . 4 9 Peak Tracking Total 6 | . 4 . . 4 6 Tactical Retreats . | . . . . . . Traps | -11 -10 -10 -10 -9 -8 ------- Run | Scr Mat Min Exi Min Mat Traps Triggered 1 | . 1 . . . . Indirectly . | . . . . . . Trap Hack Attempts . | . . . . . . Triggered . | . . . . . . Disarmed . | . . . . . . Reprogrammed . | . . . . . . Reused . | . . . . . . Traps Extracted . | . . . . . . Installed . | . . . . . . Triggered . | . . . . . . Machines | -11 -10 -10 -10 -9 -8 ---------- Run | Scr Mat Min Exi Min Mat Machines Disabled 4 | . . . . 2 2 Max in Single Turn 1 | . . . . 1 1 Machines Sabotaged . | . . . . . . Garrisons Compromised . | . . . . . . Overloaded Fab Kills . | . . . . . . Fab Network Shutdowns . | . . . . . . Hacking | -11 -10 -10 -10 -9 -8 --------- Run | Scr Mat Min Exi Min Mat Machines Accessed 1 | . 1 . . . . Terminals 1 | . 1 . . . . Fabricators . | . . . . . . Repair Stations . | . . . . . . Recycling Units . | . . . . . . Scanalyzers . | . . . . . . Garrison Access . | . . . . . . Total Hacks 4 | . 4 . . . . Successful 3 | . 3 . . . . Failed 1 | . 1 . . . . Catastrophic . | . . . . . . Database Lockouts . | . . . . . . Manual 4 | . 4 . . . . Terminals 4 | . 4 . . . . Fabricators . | . . . . . . Repair Stations . | . . . . . . Recycling Units . | . . . . . . Scanalyzers . | . . . . . . Garrison Access . | . . . . . . Terminal Hacks . | . . . . . . Fabricator Hacks . | . . . . . . Repair Station Hacks . | . . . . . . Recycling Unit Hacks . | . . . . . . Scanalyzer . | . . . . . . Garrison Access Hacks . | . . . . . . Unauthorized Hacks 7 | . 7 . . . . Terminals 3 | . 3 . . . . Track 1 | . 1 . . . . Assimilate 1 | . 1 . . . . Botnet 1 | . 1 . . . . Fabricators . | . . . . . . Repair Stations . | . . . . . . Recycling Units . | . . . . . . Scanalyzers . | . . . . . . Garrison Access . | . . . . . . Data Cores Recovered . | . . . . . . Used . | . . . . . . Hacking Detections 1 | . 1 . . . . Full Trace Events . | . . . . . . Feedback Events . | . . . . . . Feedback Blocked . | . . . . . . Robot Schematics Acquired . | . . . . . . Robots Built . | . . . . . . Matter . | . . . . . . Time . | . . . . . . Total Robot Build Rating . | . . . . . . Part Schematics Acquired . | . . . . . . Parts Built . | . . . . . . Matter . | . . . . . . Time . | . . . . . . Total Part Build Rating . | . . . . . . Parts Repaired . | . . . . . . Time . | . . . . . . Parts Recycled . | . . . . . . Recycled Matter . | . . . . . . Retrieved Matter . | . . . . . . Retrieved Components . | . . . . . . Parts Scanalyzed . | . . . . . . Part Schematics Acquired . | . . . . . . Parts Damaged . | . . . . . . Bothacking | -11 -10 -10 -10 -9 -8 ------------ Run | Scr Mat Min Exi Min Mat Used RIF Installer . | . . . . . . Robots Hacked . | . . . . . . Non-combat . | . . . . . . Combat . | . . . . . . Robot Hacks Applied . | . . . . . . Relay Couplers Released . | . . . . . . Robots Rewired . | . . . . . . Allies Hacked . | . . . . . . Hacks Repelled . | . . . . . . Allies | -11 -10 -10 -10 -9 -8 -------- Run | Scr Mat Min Exi Min Mat Total Allies . | . . . . . . Largest Group . | . . . . . . Highest-Rated Group . | . . . . . . Highest-Rated Ally . | . . . . . . Total Orders . | . . . . . . Ally Attacks . | . . . . . . Total Damage . | . . . . . . Kills . | . . . . . . Allies Corrupted . | . . . . . . Allies Melted . | . . . . . . Intel | -11 -10 -10 -10 -9 -8 ------- Run | Scr Mat Min Exi Min Mat Robot Analysis Total . | . . . . . . Derelict Logs Recovered 1 | . . . . 1 . Drone Launches . | . . . . . . Drone Recoveries . | . . . . . . Exploration | -11 -10 -10 -10 -9 -8 ------------- Run | Scr Mat Min Exi Min Mat Turns Passed 1439 | 27 308 308 426 176 194 Spaces Moved 949 | 26 167 232 354 78 92 Core 17 | 13 . . . . 4 Treads 153 | . . . . 65 88 Legs 779 | 13 167 232 354 13 . Wheels . | . . . . . . Hover . | . . . . . . Flight . | . . . . . . Fastest Speed 50 | 50 120 120 120 120 100 Average Speed 125 | 85 120 120 120 153 157 Slowest Speed 160 | 120 120 120 120 160 160 Overloaded Moves . | . . . . . . Propulsion Burnouts . | . . . . . . Robots Hopped . | . . . . . . Cave-ins Triggered . | . . . . . . Exploration Rate (%) 35 | 3 40 54 85 21 12 Regions Visited 5 Branch Regions 3 Pre-discovered Areas 2 | . . 1 . 1 . Known Exits Taken 4 | . 1 1 1 1 . Unknown Exits Taken 1 | 1 . . . . . Scrap Searched 2 | . . . . 2 . Spaces Dug . | . . . . . . Terrain Destroyed 13 | . . . . 13 . Melee . | . . . . . . Projectile . | . . . . . . AOE 13 | . . . . 13 . Actions | -11 -10 -10 -10 -9 -8 --------- Run | Scr Mat Min Exi Min Mat Total 1111 | 30 241 262 356 103 119 Wait 45 | . 13 28 . . 4 Move 944 | 25 166 231 353 77 92 Hop . | . . . . . . Pick Up 19 | 4 12 1 1 . 1 Fast Attach 13 | 1 5 . . 5 2 Attach 7 | . 6 1 . . . Detach . | . . . . . . Swap 7 | . 6 . . . 1 Drop 21 | . 12 1 2 2 4 Fire 55 | . 21 . . 19 15 Melee . | . . . . . . Ram . | . . . . . . Kick . | . . . . . . Crush . | . . . . . . Escape Stasis . | . . . . . . Rewire . | . . . . . . Trap . | . . . . . . Miscellaneous . | . . . . . . Route ------- -11/Scrapyard -10/Materials -10/Mines (discovered 2 exits: *Mat / *Exi) -10/Exiles -9/Mines -8/Materials History --------- Turn | Location | Event 9 | -11/Scrapyard | Discovered new exit (range 15) 28 | -11/Scrapyard | Entered Materials 256 | -10/Materials | Discovered new exit (range 14) 290 | -10/Materials | Identified exit to Mines 336 | -10/Materials | Entered Mines 377 | -10/Mines | Met a Derelict bent on vengeance 436 | -10/Mines | Learned location of Storage (-8) 492 | -10/Mines | Discovered new exit (range 8) 503 | -10/Mines | Identified exit to Materials 529 | -10/Mines | Build established: Scavenger-Mutant 638 | -10/Mines | Deemed a non-threat by the Exiles lab entrance 639 | -10/Mines | Discovered new exit (range 5) 643 | -10/Mines | Identified exit to Exiles 644 | -10/Mines | Entered Exiles 644 | -10/Exiles | Found Exiles lab abandoned 1058 | -10/Exiles | Discovered new exit (range 11) 1069 | -10/Exiles | Identified exit to Mines 1070 | -10/Exiles | Entered Mines 1181 | -9/Mines | Lost 4 parts (1p1n1u1w) 1233 | -9/Mines | Discovered new exit (range 9) 1244 | -9/Mines | Identified exit to Materials 1246 | -9/Mines | Entered Materials 1246 | -8/Materials | Evolved 4 slots: Propulsion x2, Utility x2 1440 | -8/Materials | Self-destructed Last Messages --------------- 01426_ R-06 Scavenger collects Sml. Storage Unit. 01429_ Acquired Adv. EMP Blaster. 01430_ K-01 Serf destroyed. 01430_ Terminal disabled. 01430_ R-06 Scavenger destroyed. 01430_ G-47 Trooper destroyed. 01430_ Destroyed Com. Wheel. 01430_ Chain reaction triggered in Lgt. Ion Engine. 01431_ Imp. Treads destroyed. 01432_ U-05 Engineer lays Concrete. 01432_ Chain reaction triggered in Lgt. Ion Engine. 01432_ Destroyed Aluminum Leg. 01432_ Door malfunctions. 01433_ Imp. Ion Engine destroyed. 01433_ R-06 Scavenger collects Lgt. Assault Rifle. 01435_ G-47 Trooper misfires. 01435_ Destroyed Particle Gun. 01437_ U-05 Engineer lays Concrete. 01440_ Adv. EMP Blaster destroyed. 01440_ U-05 Engineer lays Concrete. Map ----- +----------------------------------------------------+ | ?????????????????????????????????????????????????? | | ?????????????????????????????????????????????????? | | ?????????????????????????????????????????????????? | | ?????????????????????????????????????????????????? | | ?????????????????????????????????????????????????? | | ?????????????????????????????????????????????????? | | ?????????????????????????????????????????????????? | | ??????###############????????????????????????????? | | ??????# # #????????????????????????????? | | ??????# """ """ # #????????????????????????????? | | ??????# """ """ # #????????????????????????????? | | ??????# """ """ + #???####?????????????????????? | | ??????# # #??? ?????????????????????? | | ??????# # #??# ?????????????????????? | | ??????# # #??# ?????????????????????? | | ??????# # #??# #?????????????????????? | | ??????########### #??# #?????????????????????? | | ????????????????# #??# #?????????????????????? | | ????????????????# #??# r#?##??????????????????? | | ??????????##????# #??# #? ???????????????????? | | ????????### ##### #??# # "???????????????????? | | ????????# !# #??# # ????????????????????? | | ????????# """" %# #??# +?????????????????????? | | ????????# ""T""*# #??# #?????????????????????? | | ????????# %# #??# #############?????????? | | ????????# + #### @ ! #?????????? | | ????????# # =% #?????????? | | ????????# # ]! !! #?????????? | | ????????# """"" # ]! ! #?????????? | | ????????# """"" ######## ]!! r #?????????? | | ????????# """"" #??????# ug g #?????????? | | ????????# #??????# g % #?????????? | | ????????#??######??????# u !%! #?????????? | | ??????????????????????? u r % ????????? | | ?????????????????????? a ????????? | | ????????????????????? a ????????? | | ????????????????????#### ##########/##?????????? | | ???????????????????????# #?????????? ?????????? | | ???????????????????????# #?????????????????????? | | ???????????????????????# #?????????????????????? | | ???????????????????????# #?????????????????????? | | ???????????????????????# #?????????????????????? | | ???????????????????????# ??????????????????????? | | ???????????????????????? ??????????????????????? | | ?????????????????????????????????????????????????? | | ?????????????????????????????????????????????????? | | ?????????????????????????????????????????????????? | | ?????????????????????????????????????????????????? | | ?????????????????????????????????????????????????? | | ?????????????????????????????????????????????????? | +----------------------------------------------------+ Best States ------------- Heat Dissipation 35 Energy Generation 14 Energy Capacity 265 Matter Stores 300 Matter Capacity 300 Sight Range 16 Robot Scan Range 10 Terrain Scan Density 10 ECM Strength 1 Evasion (%) 50 Recoil Reduction 2 Item Schematics ----------------- None Robot Schematics ------------------ None Fabricated ------------ Nothing Alien Tech Used ----------------- None Achievements -------------- None Challenges ------------ None Game ------ Seed ColdRagnarokChainsword Manual? 0 Play Time 00:13:05 Cumulative 40.6 hours Start 2019.10.28 @ 13:22:08 End 2019.10.28 @ 13:32:58 Sessions 1 Manual Loads 0 Difficulty Rogue Special Mode None Game No. 64 Rogue 64 Adventurer 0 Explorer 0 Win Type - Total 0 Types 0/0/0/0/0/0/0 Lore% 27 Gallery% 32 Achievement% 26 Wizard Run 0 Options --------- ASCII 0 Keyboard 0 Movement Mouse Keybinds 0 Fullscreen 1 Font 18/SmallcapsGlow Map View 76x50 Tactical HUD 1 Map Filters NONE Filters NONE Steam 1 RUN: 8e0b98d0-1283-4dfd-8a9f-774a7d6e34dc